bitfinex-derivatives/quotes_SOLF0:USTF0_20260306
["timestamp","ask_amount","ask_price","bid_price","bid_amount"]
[1772805890403,24.43737472,85.665,85.594,25.07101562]
[1772805890607,24.43737472,85.659,85.561,25.07101562]
[1772805891004,10.508,85.65,85.589,10.515]
[1772805891203,10.508,85.65,85.59,25.07101562]
[1772805891407,24.43737472,85.659,85.59,25.07101562]
[1772805891608,24.43737472,85.659,85.594,35.58601562]
[1772805892003,24.43737472,85.659,85.594,25.07101562]
[1772805892808,10.507,85.658,85.596,10.515]
[1772805893010,10.507,85.658,85.594,25.07101562]
[1772805893210,24.43737472,85.657,85.556,25.07101562]
[1772805893511,24.43737472,85.657,85.581,25.07101562]
[1772805893906,24.43737472,85.657,85.593,10.515]
[1772805895113,24.43737472,85.657,85.584,10.516]
[1772805895306,24.43737472,85.657,85.563,24.01218527]
[1772805896213,10.51,85.631,85.563,24.01218527]
[1772805896411,25.10276943,85.63,85.563,24.01218527]
[1772805897710,25.10276943,85.63,85.573,24.01218527]
[1772805897915,25.10276943,85.649,85.573,24.01218527]
[1772805898915,25.10276943,85.646,85.585,10.516]
[1772805899412,25.10276943,85.646,85.573,24.01218527]
[1772805900312,10.51,85.635,85.576,24.01218527]
[1772805900519,25.10276943,85.634,85.551,24.01218527]
[1772805901018,10.51,85.633,85.569,10.518]
[1772805901717,23.71498481,85.632,85.569,10.518]
[1772805901914,10.511,85.629,85.568,24.01218527]
[1772805902212,23.71498481,85.632,85.568,24.01218527]
[1772805903114,10.51,85.63,85.568,24.01218527]
[1772805903715,23.71498481,85.621,85.541,24.07772285]
[1772805904114,23.71498481,85.639,85.561,24.07772285]
[1772805904314,23.71498481,85.622,85.561,24.07772285]
[1772805905015,10.51,85.63,85.57,24.07772285]
[1772805905317,23.71498481,85.629,85.57,24.07772285]
[1772805905516,23.71498481,85.629,85.572,24.07772285]
[1772805905713,23.71498481,85.659,85.572,24.07772285]
[1772805905919,25.71498481,85.659,85.572,24.07772285]
[1772805906816,10.508,85.646,85.572,24.07772285]
[1772805907019,10.508,85.646,85.58,8.92650548]
[1772805907213,23.71498481,85.63,85.562,24.07772285]
[1772805907413,23.71498481,85.63,85.541,24.07772285]
[1772805907616,23.71498481,85.649,85.561,24.07772285]
[1772805907821,10.509,85.64,85.59,10.515]
[1772805908014,23.71498481,85.649,85.59,10.515]
[1772805908213,23.71498481,85.649,85.585,24.07772285]
[1772805908413,10.51,85.632,85.574,10.517]
[1772805909012,34.22598481,85.623,85.569,24.07772285]
[1772805909217,8.92650548,85.68,85.52,21.048]
[1772805909218,23.71498481,85.619,85.55,24.07772285]
[1772805909510,23.71498481,85.601,85.532,24.07772285]
[1772805909713,23.71498481,85.601,85.514,24.07772285]
[1772805909912,23.71498481,85.599,85.514,24.07772285]
[1772805910111,10.518,85.568,85.516,10.524]
[1772805910315,34.23298481,85.568,85.5,8.92650548]
[1772805910522,34.23298481,85.568,85.501,24.07772285]
[1772805910523,23.71498481,85.568,85.501,24.07772285]
[1772805911012,8.92650548,85.56,85.477,24.07772285]
[1772805911211,23.71498481,85.559,85.477,24.07772285]
[1772805911821,23.71498481,85.559,85.402,11.71]
[1772805911822,23.71498481,85.528,85.458,24.07772285]
[1772805912615,10.524,85.52,85.458,24.07772285]
[1772805913415,10.524,85.52,85.401,11.71]
[1772805913416,23.71498481,85.511,85.439,24.07772285]
[1772805913721,23.71498481,85.511,85.401,11.71]
[1772805913722,23.71498481,85.549,85.441,24.07772285]
[1772805913925,10.525,85.515,85.448,10.533]
[1772805914221,23.71498481,85.523,85.441,24.07772285]
[1772805914718,10.527,85.491,85.43,8.92650548]
[1772805914923,23.71498481,85.489,85.422,24.07772285]
[1772805915122,23.71498481,85.489,85.401,24.07772285]
[1772805916227,8.92650548,85.49,85.401,24.07772285]
[1772805916228,10.532,85.458,85.401,24.07772285]
[1772805916618,23.71498481,85.489,85.401,24.07772285]
[1772805916817,10.529,85.483,85.411,24.07772285]
[1772805917019,23.71498481,85.482,85.411,24.07772285]
[1772805917227,23.71498481,85.482,85.392,24.07772285]
[1772805917522,23.71498481,85.467,85.392,24.07772285]
[1772805918421,23.71498481,85.465,85.394,24.07772285]
[1772805918726,8.92650548,85.49,85.321,21.097]
[1772805918727,23.71498481,85.489,85.411,24.07772285]
[1772805918927,10.529,85.479,85.411,24.07772285]
[1772805919226,23.71498481,85.489,85.411,24.07772285]
[1772805919425,23.71498481,85.489,85.425,10.536]
[1772805919626,23.71498481,85.529,85.431,24.07772285]
[1772805919825,23.71498481,85.529,85.451,24.07772285]
[1772805920019,10.523,85.527,85.453,10.532]
[1772805920326,23.71498481,85.526,85.453,10.532]
[1772805920627,8.92650548,85.61,85.4,8.92650548]
[1772805920628,23.71498481,85.511,85.431,24.07772285]
[1772805921217,10.525,85.51,85.431,24.07772285]
[1772805921529,23.71498481,85.509,85.431,24.07772285]
[1772805921930,23.71498481,85.509,85.45,33.00422833]
[1772805922427,23.71498481,85.509,85.4,8.92650548]
[1772805922428,23.71498481,85.509,85.43,33.00422833]
[1772805922622,23.71498481,85.509,85.431,24.07772285]
[1772805923224,10.526,85.507,85.433,24.07772285]
[1772805923423,23.71498481,85.509,85.433,24.07772285]
[1772805923624,34.23998481,85.509,85.434,24.07772285]
[1772805923824,23.71498481,85.509,85.45,24.07772285]
[1772805924023,23.71498481,85.509,85.431,24.07772285]
[1772805924226,10.524,85.521,85.442,24.07772285]
[1772805924431,23.71498481,85.52,85.442,24.07772285]
[1772805925131,10.525,85.513,85.444,24.07772285]
[1772805925331,23.71498481,85.513,85.44,8.92650548]
[1772805925726,23.71498481,85.513,85.442,24.07772285]
[1772805926124,23.71498481,85.532,85.461,24.07772285]
[1772805927133,23.71498481,85.532,85.46,8.92650548]
[1772805927431,23.71498481,85.532,85.461,24.07772285]
[1772805928030,23.71498481,85.532,85.469,10.53]
[1772805928234,23.71498481,85.532,85.461,24.07772285]
[1772805928435,23.71498481,85.532,85.442,24.07772285]
[1772805928637,23.71498481,85.529,85.442,24.07772285]
[1772805928826,23.71498481,85.511,85.442,24.07772285]
[1772805929332,23.71498481,85.55,85.461,24.07772285]
[1772805929634,23.71498481,85.55,85.48,8.92650548]
[1772805930332,23.71498481,85.544,85.48,8.92650548]
[1772805930733,23.71498481,85.565,85.481,24.07772285]
[1772805930938,23.71498481,85.584,85.509,24.07772285]
[1772805931139,23.71498481,85.571,85.509,24.07772285]
[1772805931532,10.519,85.561,85.5,8.92650548]
[1772805931842,23.77036094,85.561,85.5,8.92650548]
[1772805932135,23.77036094,85.581,85.501,21.92234898]
[1772805932739,34.28636094,85.581,85.521,21.92234898]
[1772805933430,34.28636094,85.581,85.522,21.92234898]
[1772805933431,23.77036094,85.581,85.522,21.92234898]
[1772805934029,23.77036094,85.581,85.524,10.523]
[1772805934232,23.77036094,85.581,85.522,21.92234898]
[1772805934233,23.77036094,85.581,85.525,21.92234898]
[1772805934435,23.77036094,85.629,85.525,21.92234898]
[1772805934739,23.77036094,85.592,85.525,21.92234898]
[1772805935141,23.77036094,85.592,85.521,21.92234898]
[1772805935637,10.515,85.589,85.524,21.92234898]
[1772805936736,34.28536094,85.589,85.524,21.92234898]
[1772805937842,34.28536094,85.589,85.52,19.45050548]
[1772805937843,34.28536094,85.589,85.526,21.92234898]
[1772805938750,23.77036094,85.629,85.531,21.92234898]
[1772805938937,23.77036094,85.629,85.541,21.92234898]
[1772805939137,23.77036094,85.629,85.523,21.92234898]
[1772805939333,11.5429065,85.663,85.502,21.92234898]
[1772805939334,23.77036094,85.579,85.502,21.92234898]
[1772805940042,23.77036094,85.564,85.502,21.92234898]
[1772805940633,10.519,85.56,85.504,10.526]
[1772805940842,23.77036094,85.564,85.502,21.92234898]
[1772805941242,10.519,85.561,85.503,32.44834898]
[1772805941739,10.521,85.544,85.484,10.528]
[1772805942039,23.77036094,85.549,85.463,21.92234898]
[1772805942543,10.524,85.52,85.467,10.53]
[1772805942939,10.524,85.52,85.463,21.92234898]
[1772805943338,23.77036094,85.531,85.441,21.92234898]
[1772805943539,23.77036094,85.529,85.441,21.92234898]
[1772805944046,10.526,85.503,85.449,10.533]
[1772805944447,23.77036094,85.529,85.449,10.533]
[1772805945746,10.526,85.505,85.449,10.533]
[1772805946249,23.77036094,85.529,85.458,10.531]
[1772805946848,23.77036094,85.529,85.467,10.53]
[1772805947452,34.29336094,85.527,85.467,10.53]
[1772805947751,34.29336094,85.527,85.474,10.529]
[1772805948549,10.524,85.519,85.469,21.92234898]
[1772805949149,23.77036094,85.527,85.47,10.53]
[1772805949150,34.29336094,85.527,85.47,10.53]
[1772805949349,23.77036094,85.527,85.469,21.92234898]
[1772805949858,23.77036094,85.527,85.451,21.92234898]
[1772805950547,23.77036094,85.522,85.451,21.92234898]
[1772805950956,10.525,85.513,85.451,21.92234898]
[1772805951262,23.77036094,85.522,85.451,21.92234898]
[1772805951645,10.525,85.513,85.451,21.92234898]
[1772805951852,23.77036094,85.512,85.451,21.92234898]
[1772805952160,23.77036094,85.512,85.434,208.88234898]
[1772805952452,10.526,85.5,85.437,21.92234898]
[1772805953246,10.50747373,85.573,85.381,21.082]
[1772805953247,23.77036094,85.491,85.419,21.92234898]
[1772805953760,23.77036094,85.485,85.419,32.45834898]
[1772805954254,23.77036094,85.485,85.43,10.535]
[1772805954959,22.94531595,85.503,85.44,21.03696997]
[1772805955261,22.94531595,85.529,85.441,21.03696997]
[1772805956261,22.94531595,85.529,85.462,21.03696997]
[1772805956262,10.523,85.526,85.462,21.03696997]
[1772805956458,22.94531595,85.525,85.441,21.03696997]
[1772805956855,22.94531595,85.503,85.441,21.03696997]
[1772805958166,22.94531595,85.503,85.43,8.92650548]
[1772805958368,22.94531595,85.503,85.423,21.03696997]
[1772805958559,22.94531595,85.503,85.405,21.03696997]
[1772805958755,33.47431595,85.482,85.417,21.03696997]
[1772805959157,33.47431595,85.482,85.42,10.536]
[1772805959360,33.47431595,85.479,85.41,8.92650548]
[1772805959561,22.94531595,85.478,85.39,8.92650548]
[1772805960663,22.94531595,85.478,85.36,138.06747545]
[1772805960664,8.92650548,85.47,85.37,8.92650548]
[1772805960859,22.94531595,85.469,85.37,8.92650548]
[1772805961062,22.94531595,85.45,85.388,10.54]
[1772805961272,22.94531595,85.45,85.377,21.03696997]
[1772805961769,22.48992823,85.44,85.36,138.06747545]
[1772805961966,22.48992823,85.44,85.361,20.96271349]
[1772805962367,10.534,85.438,85.368,10.543]
[1772805962569,22.48992823,85.437,85.369,20.93094082]
[1772805963067,22.48992823,85.427,85.36,138.06747545]
[1772805963269,22.48992823,85.427,85.351,20.52882317]
[1772805963459,22.48992823,85.427,85.362,20.52882317]
[1772805964260,22.48992823,85.427,85.363,10.543]
[1772805964465,21.057,85.485,85.371,20.49828647]
[1772805964466,22.48992823,85.445,85.371,20.49828647]
[1772805964960,22.48992823,85.442,85.371,20.49828647]
[1772805965470,22.48992823,85.429,85.353,10.544]
[1772805965964,22.48992823,85.429,85.353,31.14991849]
[1772805966166,10.536,85.422,85.359,10.544]
[1772805966464,10.536,85.422,85.359,31.12028299]
[1772805966968,10.536,85.422,85.35,8.9679329]
[1772805966969,10.536,85.422,85.363,10.543]
[1772805967166,10.536,85.422,85.364,20.57628299]
[1772805967666,10.535,85.427,85.367,10.543]
[1772805967968,10.535,85.427,85.322,2.03757213]
[1772805967969,22.48992823,85.429,85.379,10.541]
[1772805968267,11.53777068,85.493,85.33,8.9679329]
[1772805968268,22.48992823,85.449,85.39,8.9679329]
[1772805968468,22.48992823,85.449,85.391,10.54]
[1772805969064,22.48992823,85.449,85.392,20.72757731]
[1772805969665,22.48992823,85.449,85.393,10.539]
[1772805970172,22.48992823,85.449,85.396,31.56694873]
[1772805970372,10.531,85.464,85.397,20.998859]
[1772805970675,22.48992823,85.469,85.4,8.9679329]
[1772805970867,22.48992823,85.469,85.401,20.998859]
[1772805971064,22.48992823,85.488,85.401,20.998859]
[1772805971566,10.528,85.487,85.429,10.535]
[1772805971778,22.48992823,85.488,85.429,10.535]
[1772805971965,22.48992823,85.488,85.42,29.85101988]
[1772805972169,22.48992823,85.47,85.4,29.85101988]
[1772805973072,22.48992823,85.452,85.39,8.9679329]
[1772805973274,22.48992823,85.452,85.382,20.85474269]
[1772805973868,22.48992823,85.431,85.363,187.16]
[1772805974072,22.48992823,85.431,85.361,20.84723601]
[1772805975767,10.536,85.421,85.361,31.39023601]
[1772805976073,10.536,85.421,85.361,20.84723601]
[1772805976665,22.48992823,85.417,85.35,8.9679329]
[1772805977071,22.48992823,85.417,85.341,19.46798444]
[1772805977869,22.48992823,85.417,85.342,19.70645515]
[1772805978568,22.48992823,85.417,85.312,2.0379659]
[1772805978569,22.48992823,85.417,85.357,19.68072285]
[1772805978773,22.48992823,85.449,85.357,19.68072285]
[1772805979076,22.48992823,85.449,85.374,19.68072285]
[1772805980574,10.535,85.433,85.383,10.541]
[1772805980763,22.48992823,85.449,85.383,10.541]
[1772805980964,22.48992823,85.449,85.392,10.54]
[1772805980965,10.533,85.444,85.392,10.54]
[1772805981271,22.48992823,85.444,85.374,19.68072285]
[1772805982372,22.48992823,85.444,85.354,19.46769902]
[1772805982574,22.48992823,85.422,85.354,19.46769902]
[1772805983868,10.538,85.405,85.354,19.46769902]
[1772805984278,22.48992823,85.422,85.354,19.46769902]
[1772805985378,10.538,85.406,85.355,10.544]
[1772805986569,10.537,85.414,85.356,19.67148429]
[1772805986881,22.48992823,85.449,85.371,19.67148429]
[1772805987781,22.48992823,85.449,85.379,10.541]
[1772805988380,10.536,85.424,85.371,19.67148429]
[1772805989874,10.536,85.424,85.373,10.542]
[1772805990176,22.48992823,85.449,85.36,8.9679329]
[1772805990177,10.535,85.432,85.374,19.61436836]
[1772805990883,10.536,85.425,85.377,10.541]
[1772805992081,10.536,85.425,85.384,10.541]
[1772805992286,10.536,85.418,85.374,19.61436836]
[1772805992480,22.47271384,85.432,85.376,10.542]
[1772805992881,22.47271384,85.432,85.374,19.61436836]
[1772805993186,22.47271384,85.45,85.381,18.21037226]
[1772805994785,10.534,85.442,85.397,10.539]
[1772805995783,10.535,85.433,85.384,10.541]
[1772805996087,22.47271384,85.45,85.384,16.07390812]
[1772805996487,10.534,85.44,85.391,10.54]
[1772805997778,22.47271384,85.433,85.371,16.02139214]
[1772805998882,10.535,85.431,85.38,10.541]
[1772805999085,22.47271384,85.469,85.381,16.00197588]
[1772805999287,22.47271384,85.469,85.37,8.9679329]
[1772805999288,22.47271384,85.453,85.388,16.03781805]
[1772805999485,22.47271384,85.453,85.371,16.03781805]
[1772806000085,10.535,85.434,85.379,10.541]
[1772806000390,22.47271384,85.453,85.371,16.03781805]
[1772806000591,10.534,85.44,85.386,10.54]
[1772806000793,22.47271384,85.44,85.371,16.03781805]
[1772806000990,22.47271384,85.44,85.36,8.9679329]
[1772806001188,22.47271384,85.406,85.354,16.01910663]
[1772806002093,22.47271384,85.439,85.354,16.01910663]
[1772806002889,22.47271384,85.427,85.354,16.01910663]
[1772806003082,22.47271384,85.427,85.371,15.99465129]
[1772806003289,22.47271384,85.459,85.371,15.99465129]
[1772806003991,10.533,85.447,85.399,10.539]
[1772806004686,10.534,85.441,85.392,16.21419992]
[1772806004887,22.47271384,85.44,85.371,16.19576919]
[1772806005590,22.47271384,85.438,85.371,16.19576919]
[1772806006686,10.535,85.428,85.371,16.19576919]
[1772806007086,22.47271384,85.479,85.371,16.19576919]
[1772806007287,22.47271384,85.458,85.38,8.9679329]
[1772806007482,22.47271384,85.458,85.377,16.30147847]
[1772806007884,22.47271384,85.43,85.377,16.30147847]
[1772806008386,22.47271384,85.42,85.36,8.9679329]
[1772806008788,10.537,85.417,85.367,10.543]
[1772806008985,22.47271384,85.42,85.367,10.543]
[1772806009598,22.47271384,85.42,85.373,10.542]
[1772806012089,21.064,85.458,85.361,15.84993683]
[1772806012090,22.47271384,85.459,85.361,15.84993683]
[1772806012295,22.47271384,85.459,85.381,15.8316378]
[1772806012999,22.47271384,85.459,85.33,8.9679329]
[1772806013000,22.47271384,85.459,85.401,15.8154461]
[1772806013805,22.47271384,85.499,85.401,15.8154461]
[1772806014201,22.47271384,85.478,85.417,15.86211338]
[1772806014406,22.47271384,85.478,85.42,8.9679329]
[1772806014703,22.47271384,85.478,85.421,15.77268766]
[1772806015092,21.21257115,85.519,85.421,15.77268766]
[1772806015698,11.40476193,85.543,85.421,15.77268766]
[1772806015699,21.21257115,85.486,85.421,15.77268766]
[1772806015899,21.21257115,85.509,85.421,15.77268766]
[1772806016105,21.21257115,85.509,85.441,16.04507399]
[1772806016494,21.21257115,85.562,85.441,16.04507399]
[1772806016700,21.21257115,85.549,85.441,16.04507399]
[1772806017392,21.21257115,85.549,85.471,15.99185933]
[1772806018195,21.21257115,85.549,85.48,24.95979223]
[1772806018602,21.21257115,85.549,85.481,15.97728091]
[1772806019206,21.21257115,85.549,85.461,15.97728091]
[1772806020502,21.21257115,85.529,85.442,15.89302276]
[1772806020703,21.21257115,85.509,85.421,15.89302276]
[1772806021602,20.90445339,85.493,85.432,10.535]
[1772806022606,20.90445339,85.489,85.421,15.89302276]
[1772806022806,20.90445339,85.489,85.416,10.537]
[1772806023311,20.90445339,85.489,85.404,15.82090716]
[1772806024012,20.90445339,85.478,85.404,15.82090716]
[1772806024508,10.529,85.477,85.421,10.536]
[1772806024707,20.90445339,85.477,85.421,10.536]
[1772806025104,20.90445339,85.477,85.404,15.82090716]
[1772806026011,20.90445339,85.493,85.428,26.56181738]
[1772806026507,20.90445339,85.493,85.408,16.01358762]
[1772806026713,20.90445339,85.469,85.371,16.01358762]
[1772806027208,10.533,85.45,85.396,10.539]
[1772806027604,10.533,85.45,85.388,16.01358762]
[1772806027605,20.90445339,85.469,85.388,16.01358762]
[1772806028112,20.90445339,85.469,85.391,16.00720084]
[1772806028508,20.90445339,85.458,85.391,16.00720084]
[1772806028915,20.90445339,85.458,85.402,10.538]
[1772806029123,20.90445339,85.458,85.402,26.53229171]
[1772806029317,20.90445339,85.477,85.402,15.99429171]
[1772806029519,20.90445339,85.477,85.411,16.0403082]
[1772806030025,8.96079916,85.51,85.411,16.0403082]
[1772806030217,20.90445339,85.509,85.411,16.0403082]
[1772806030418,10.527,85.493,85.411,16.0403082]
[1772806030623,20.90445339,85.492,85.411,16.0403082]
[1772806031324,20.90445339,85.487,85.42,10.536]
[1772806032627,20.90445339,85.475,85.42,10.536]
[1772806033421,20.90445339,85.475,85.427,10.535]
[1772806034421,2.0,85.538,85.431,15.87974925]
[1772806034422,20.90445339,85.493,85.431,15.87974925]
[1772806035723,20.90445339,85.493,85.413,15.88426455]
[1772806036230,20.90445339,85.478,85.413,15.88426455]
[1772806037922,20.90445339,85.475,85.414,10.537]
[1772806038525,20.90445339,85.474,85.422,10.536]
[1772806038927,8.96079916,85.49,85.414,10.537]
[1772806038928,20.90445339,85.471,85.414,10.537]
[1772806040129,20.90445339,85.471,85.413,15.88426455]
[1772806040936,20.90445339,85.489,85.435,10.534]
[1772806041328,20.90445339,85.489,85.413,15.88426455]
[1772806041526,20.90445339,85.489,85.41,8.96079916]
[1772806041527,20.90445339,85.488,85.432,10.535]
[1772806041827,20.90445339,85.488,85.43,15.8180423]
[1772806041828,20.90445339,85.525,85.47,8.96079916]
[1772806042032,20.90445339,85.523,85.47,8.96079916]
[1772806042831,8.96079916,85.57,85.478,10.529]
[1772806043138,20.90445339,85.542,85.478,10.529]
[1772806043536,20.90445339,85.53,85.45,8.96079916]
[1772806043736,20.90445339,85.53,85.451,15.84334831]
[1772806044738,10.523,85.524,85.473,10.53]
[1772806044937,20.90445339,85.523,85.473,10.53]
[1772806045940,20.90445339,85.547,85.47,8.96079916]
[1772806046336,20.90445339,85.547,85.454,15.82987544]
[1772806046537,20.90445339,85.528,85.454,15.82987544]
[1772806046739,20.90445339,85.528,85.47,8.96079916]
[1772806047742,31.42745339,85.528,85.473,10.53]
[1772806048039,31.42745339,85.528,85.47,8.96079916]
[1772806048040,20.90445339,85.528,85.471,15.83919188]
[1772806048743,20.90445339,85.528,85.48,10.529]
[1772806048942,20.90445339,85.528,85.471,15.83919188]
[1772806049243,20.90445339,85.526,85.433,15.82913094]
[1772806049440,22.90445339,85.526,85.433,15.82913094]
[1772806049837,20.90445339,85.51,85.433,15.82913094]
[1772806050041,20.90445339,85.508,85.415,15.78133327]
[1772806051645,21.37793671,85.473,85.41,8.96079916]
[1772806052038,21.37793671,85.509,85.42,15.31613697]
[1772806052742,10.5936678,85.561,85.41,8.96079916]
[1772806052743,21.37793671,85.493,85.41,8.96079916]
[1772806053133,21.37793671,85.48,85.41,24.26613773]
[1772806053334,21.37793671,85.48,85.411,15.30533857]
[1772806053940,21.37793671,85.48,85.42,8.96079916]
[1772806054146,21.37793671,85.519,85.421,15.2484073]
[1772806054439,21.37793671,85.519,85.384,28.90670999]
[1772806054440,21.37793671,85.519,85.462,10.531]
[1772806054845,21.37793671,85.517,85.445,10.533]
[1772806055139,21.37793671,85.517,85.407,21.076]
[1772806055140,21.37793671,85.489,85.391,21.68518165]
[1772806055334,21.37793671,85.489,85.391,15.23833499]
[1772806056332,8.96079916,85.49,85.391,25.77833499]
[1772806056333,21.37793671,85.452,85.391,25.77833499]
[1772806056533,21.37793671,85.452,85.391,15.23833499]
[1772806056738,21.37793671,85.489,85.391,15.23833499]
[1772806056938,21.37793671,85.489,85.39,8.96079916]
[1772806056939,21.37793671,85.489,85.4,15.25082017]
[1772806057145,10.53,85.472,85.415,10.537]
[1772806057340,21.37793671,85.471,85.4,15.25082017]
[1772806057845,21.37793671,85.488,85.414,15.08078781]
[1772806058039,21.37793671,85.488,85.415,15.08078781]
[1772806058745,10.527,85.497,85.439,10.534]
[1772806059138,21.37793671,85.507,85.448,10.533]
[1772806060047,8.96079916,85.53,85.448,10.533]
[1772806060048,21.37793671,85.505,85.448,10.533]
[1772806060243,21.37793671,85.505,85.439,10.534]
[1772806060548,21.37793671,85.505,85.434,15.07162527]
[1772806061041,14.12484277,85.583,85.407,21.076]
[1772806061042,2.0,85.529,85.451,15.7339366]
[1772806061347,10.522,85.533,85.451,15.7339366]
[1772806061348,33.89993671,85.533,85.451,15.7339366]
[1772806061544,21.37793671,85.532,85.47,10.53]
[1772806061841,21.37793671,85.518,85.451,15.7339366]
[1772806062341,21.37793671,85.518,85.461,10.531]
[1772806062945,21.37793671,85.518,85.451,10.532]
[1772806063749,21.37793671,85.494,85.431,15.7151658]
[1772806064350,21.37793671,85.485,85.425,10.536]
[1772806064644,21.37793671,85.485,85.412,15.55543553]
[1772806065045,10.5936678,85.537,85.425,15.55543553]
[1772806065253,21.37793671,85.536,85.426,15.546388]
[1772806065545,8.96079916,85.5,85.414,21.68518165]
[1772806065748,21.37793671,85.499,85.405,15.26847993]
[1772806065948,21.37793671,85.477,85.421,10.536]
[1772806066545,31.90793671,85.474,85.421,10.536]
[1772806066744,21.37793671,85.473,85.421,10.536]
[1772806068150,21.37793671,85.473,85.408,10.538]
[1772806068344,21.37793671,85.473,85.405,15.26847993]
[1772806068542,21.37793671,85.473,85.41,8.96079916]
[1772806068747,21.37793671,85.473,85.411,17.08394049]
[1772806069144,21.37793671,85.499,85.432,10.535]
[1772806069651,21.37793671,85.494,85.432,10.535]
[1772806070153,21.37793671,85.491,85.432,10.535]
[1772806070753,21.37793671,85.491,85.441,10.534]
[1772806071055,21.37793671,85.491,85.412,17.23915245]
[1772806071252,21.37793671,85.491,85.394,38.9243341]
[1772806071550,10.532,85.454,85.394,17.23915245]
[1772806071755,21.37793671,85.453,85.382,21.68518165]
[1772806071953,21.37793671,85.453,85.383,21.68518165]
[1772806072848,21.37793671,85.453,85.403,10.538]
[1772806073448,21.37793671,85.451,85.384,21.68518165]
[1772806073843,21.37793671,85.451,85.38,8.96079916]
[1772806073844,21.37793671,85.451,85.383,21.68518165]
[1772806074245,21.37793671,85.448,85.384,38.84571606]
[1772806074455,21.37793671,85.448,85.384,17.16053441]
[1772806075853,21.86629087,85.478,85.384,17.16053441]
[1772806076053,21.86629087,85.478,85.385,17.46357048]
[1772806076756,21.86629087,85.476,85.385,17.46357048]
[1772806077559,21.86629087,85.443,85.385,17.46357048]
[1772806078255,21.86629087,85.479,85.385,17.46357048]
[1772806078760,21.86629087,85.479,85.401,17.77748567]
[1772806079150,21.86629087,85.479,85.402,17.77748567]
[1772806079954,21.86629087,85.479,85.421,17.92550163]
[1772806080458,258.02604063,85.502,85.402,17.9181339]
[1772806080459,21.86629087,85.47,85.402,17.9181339]
[1772806080654,21.86629087,85.501,85.421,17.9181339]
[1772806080854,21.86629087,85.501,85.43,8.96079916]
[1772806081760,20.35491077,85.5,85.436,10.534]
[1772806082357,10.527,85.498,85.436,10.534]
[1772806082659,20.35491077,85.497,85.436,10.534]
[1772806083659,20.35491077,85.497,85.444,10.533]
[1772806083856,20.35491077,85.497,85.431,17.64627046]
[1772806085359,20.35491077,85.497,85.433,10.535]
[1772806085558,20.35491077,85.497,85.434,17.55465856]
[1772806085960,20.35491077,85.497,85.424,10.536]
[1772806086160,20.35491077,85.497,85.416,17.55465856]
[1772806086761,30.88391077,85.482,85.419,10.536]
[1772806087360,20.35491077,85.479,85.419,10.536]
[1772806087560,20.35491077,85.479,85.416,17.55465856]
[1772806087959,20.35491077,85.496,85.416,17.55465856]
[1772806088263,20.35491077,85.496,85.431,17.90696718]
[1772806090060,258.02604063,85.502,85.43,8.95650123]
[1772806090061,258.02604063,85.502,85.443,17.80709724]
[1772806090661,20.35491077,85.501,85.43,8.95650123]
[1772806090871,20.35491077,85.479,85.391,21.68518165]
[1772806091070,20.35491077,85.479,85.386,17.80076143]
[1772806091269,8.95650123,85.48,85.386,17.80076143]
[1772806091270,20.35491077,85.464,85.401,10.538]
[1772806091465,20.35491077,85.464,85.402,17.6532143]
[1772806091666,20.35491077,85.464,85.406,10.538]
[1772806091867,20.35491077,85.464,85.402,17.6532143]
[1772806092271,20.35491077,85.501,85.402,17.6532143]
[1772806092874,258.02604063,85.502,85.402,17.6532143]
[1772806092875,20.35491077,85.477,85.402,17.6532143]
[1772806093278,20.35491077,85.501,85.421,17.64123035]
[1772806093974,20.35491077,85.498,85.422,17.34311068]
[1772806094173,20.35491077,85.498,85.423,17.34311068]
[1772806094377,10.527,85.492,85.439,10.534]
[1772806094678,30.88191077,85.492,85.423,17.34311068]
[1772806094977,20.35491077,85.492,85.437,10.534]
[1772806095774,20.35491077,85.492,85.423,17.34311068]
[1772806095980,20.35491077,85.491,85.429,17.52719879]
[1772806096377,20.35491077,85.489,85.401,21.68518165]
[1772806096679,20.35491077,85.462,85.394,17.52144222]
[1772806096981,20.35491077,85.481,85.4,26.47794345]
[1772806097876,20.35491077,85.471,85.412,10.537]
[1772806098778,20.35491077,85.461,85.412,10.537]
[1772806101481,20.35491077,85.461,85.4,26.47794345]
[1772806101482,20.35491077,85.461,85.404,10.538]
[1772806101981,20.35491077,85.48,85.414,17.6065872]
[1772806102177,20.35491077,85.48,85.4,8.95650123]